bitfinex/quotes_SOLUSD_20241101
["timestamp","ask_amount","ask_price","bid_price","bid_amount"]
[1730494715238,8.94248653,165.92,165.89,3.05213926]
[1730494715441,8.94248653,165.92,165.9,3.05213926]
[1730494715643,8.94248653,165.92,165.86,60.19038653]
[1730494715845,8.94248653,165.92,165.88,21.0995]
[1730494716146,8.94248653,165.92,165.89,3.05206282]
[1730494716538,8.94248653,165.92,165.9,3.05206282]
[1730494716841,8.94248653,165.92,165.88,21.0995]
[1730494717043,8.94248653,165.92,165.89,3.05196144]
[1730494717261,8.94248653,165.92,165.9,3.05196144]
[1730494717553,8.94248653,165.92,165.88,21.0995]
[1730494717740,8.94248653,165.92,165.89,3.05185743]
[1730494717933,8.94248653,165.92,165.9,9.07935743]
[1730494718135,8.94248653,165.91,165.89,6.0279]
[1730494718342,8.94248653,165.91,165.9,3.05180985]
[1730494720362,14.96978653,165.91,165.86,21.1013]
[1730494720650,8.94248653,165.89,165.86,21.1013]
[1730494720829,8.94248653,165.88,165.86,21.1015]
[1730494721031,8.94248653,165.89,165.86,21.1015]
[1730494722035,8.94248653,165.89,165.86,15.0724]
[1730494724252,8.94248653,165.89,165.84,8.94248653]
[1730494724851,8.94248653,165.89,165.84,11.99049601]
[1730494725062,8.94248653,165.9,165.84,8.94248653]
[1730494727559,24.62038653,165.92,165.86,8.94248653]
[1730494728863,8.94248653,165.91,165.85,24.01628653]
[1730494730651,8.94248653,165.87,165.82,8.94248653]
[1730494730852,8.94248653,165.87,165.83,15.0756]
[1730494731950,8.94248653,165.87,165.83,21.1058]
[1730494733764,6.028,165.9,165.83,21.1058]
[1730494733765,8.94248653,165.9,165.84,8.94248653]
[1730494734072,8.94248653,165.89,165.85,21.1033]
[1730494734364,8.94248653,165.88,165.85,21.1033]
[1730494734561,57.47504612,165.92,165.83,6.0301]
[1730494734562,8.94248653,165.86,165.83,6.0301]
[1730494734764,72.54254612,165.92,165.82,21.1064]
[1730494734765,8.94248653,165.85,165.82,21.1064]
[1730494735662,8.94248653,165.84,165.82,15.0759]
[1730494736851,8.94248653,165.84,165.8,6.0313]
[1730494736852,8.94248653,165.83,165.74,8.94248653]
[1730494737047,8.94248653,165.79,165.74,11.9847848]
[1730494737248,8.94248653,165.79,165.73,18.0186848]
[1730494737450,8.94248653,165.79,165.74,8.94248653]
[1730494737950,8.94248653,165.79,165.75,21.116]
[1730494742072,8.94248653,165.8,165.75,21.116]
[1730494742369,8.94248653,165.8,165.75,30.05848653]
[1730494743472,8.94248653,165.8,165.75,21.116]
[1730494744775,8.94248653,165.81,165.75,8.94248653]
[1730494744965,8.94248653,165.81,165.76,8.94248653]
[1730494745362,8.94248653,165.79,165.73,8.94248653]
[1730494745553,35.76994612,165.84,165.72,75.193474]
[1730494745554,8.94248653,165.8,165.75,8.94248653]
[1730494745755,8.94248653,165.81,165.75,8.94248653]
[1730494746171,8.94248653,165.79,165.73,8.94248653]
[1730494747079,8.94248653,165.8,165.74,8.94248653]
[1730494749181,8.94248653,165.79,165.75,21.116]
[1730494751461,8.94248653,165.78,165.75,21.116]
[1730494752480,8.94248653,165.78,165.73,8.94248653]
[1730494753665,8.94248653,165.79,165.73,8.94248653]
[1730494753867,8.94248653,165.79,165.74,21.1173]
[1730494754288,8.94248653,165.79,165.74,30.05978653]
[1730494754486,8.94248653,165.8,165.74,30.05978653]
[1730494754695,8.94248653,165.8,165.75,8.94248653]
[1730494755168,8.94248653,165.8,165.74,30.05978653]
[1730494758096,8.94248653,165.8,165.75,8.94248653]
[1730494760281,8.94248653,165.79,165.76,21.1148]
[1730494762295,8.94248653,165.79,165.76,15.082]
[1730494765099,8.94248653,165.8,165.76,15.082]
[1730494766094,8.94248653,165.8,165.75,8.94248653]
[1730494766499,6.0307,165.82,165.74,30.1677]
[1730494766500,20.0,165.84,165.79,8.94248653]
[1730494766706,16.0323,165.85,165.81,8.94248653]
[1730494767012,16.0323,165.85,165.74,51.8352]
[1730494767185,8.94248653,165.81,165.76,8.94248653]
[1730494768198,8.94248653,165.81,165.77,15.0811]
[1730494768502,8.94248653,165.78,165.75,6.0331]
[1730494769899,8.94248653,165.78,165.74,15.0833]
[1730494770991,8.94248653,165.78,165.73,8.94248653]
[1730494772403,8.94248653,165.78,165.74,6.0335]
[1730494773501,8.94248653,165.78,165.74,21.1173]
[1730494774199,8.94248653,165.79,165.74,30.05978653]
[1730494774397,8.94248653,165.8,165.74,30.05978653]
[1730494775680,8.94248653,165.79,165.74,21.1173]
[1730494776190,8.94248653,165.79,165.75,3.04700807]
[1730494776884,8.94248653,165.8,165.76,21.1148]
[1730494777078,6.0303,165.83,165.76,21.1148]
[1730494777281,8.94248653,165.81,165.76,21.1148]
[1730494778306,8.94248653,165.8,165.76,21.1148]
[1730494778600,8.94248653,165.79,165.76,15.082]
[1730494779202,8.94248653,165.79,165.76,18.13304743]
[1730494779379,8.94248653,165.79,165.76,15.082]
[1730494781114,8.94248653,165.79,165.77,3.05552657]
[1730494781405,8.94248653,165.79,165.76,15.082]
[1730494781608,8.94248653,165.79,165.77,3.05556275]
[1730494782105,8.94248653,165.79,165.76,15.082]
[1730494782287,8.94248653,165.79,165.77,3.05753595]
[1730494782481,8.94248653,165.79,165.77,6.0324]
[1730494783710,8.94248653,165.79,165.76,15.082]
[1730494783903,8.94248653,165.79,165.77,3.05776931]
[1730494784214,8.94248653,165.79,165.76,15.082]
[1730494784516,8.94248653,165.79,165.77,3.0577449]
[1730494784733,8.94248653,165.79,165.76,15.082]
[1730494785007,8.94248653,165.79,165.77,3.05776189]
[1730494785180,8.94248653,165.79,165.76,15.082]
[1730494785384,8.94248653,165.79,165.77,3.05774833]
[1730494785807,8.94248653,165.79,165.77,6.0324]
[1730494790225,8.94248653,165.79,165.76,15.082]
[1730494790437,8.94248653,165.8,165.77,3.05419533]
[1730494790727,16.0323,165.85,165.76,15.082]
[1730494790728,8.94248653,165.82,165.78,3.05419533]
[1730494790929,8.94248653,165.82,165.76,24.02448653]
[1730494791110,8.94248653,165.82,165.77,3.05397621]
[1730494791312,8.94248653,165.81,165.78,3.05397621]
[1730494791520,8.94248653,165.8,165.76,15.082]
[1730494791716,8.94248653,165.8,165.77,3.05387941]
[1730494792030,8.94248653,165.8,165.78,9.08567941]
[1730494792331,8.94248653,165.8,165.78,6.0318]
[1730494793031,8.94248653,165.8,165.76,15.082]
[1730494793207,8.94248653,165.8,165.77,3.05380948]
[1730494793404,9.04248653,165.81,165.78,3.05380948]
[1730494793633,9.04248653,165.81,165.76,15.082]
[1730494793832,9.04248653,165.81,165.77,3.05373582]
[1730494794034,9.04248653,165.81,165.78,3.05373582]
[1730494794438,9.04248653,165.81,165.76,15.082]
[1730494794741,9.04248653,165.81,165.77,3.05366504]
[1730494794936,9.04248653,165.81,165.78,3.05366504]
[1730494795120,9.04248653,165.81,165.76,21.1148]
[1730494795321,9.04248653,165.81,165.77,3.05360052]
[1730494795516,9.04248653,165.81,165.78,3.05360052]
[1730494795721,9.04248653,165.81,165.76,21.1148]
[1730494795922,9.04248653,165.81,165.77,3.05360052]
[1730494796135,9.04248653,165.81,165.78,3.05360052]
[1730494796430,9.04248653,165.81,165.76,21.1148]
[1730494796637,9.04248653,165.81,165.77,3.05351159]
[1730494796829,9.04248653,165.81,165.78,3.05351159]
[1730494797029,9.04248653,165.81,165.76,21.1148]
[1730494797225,9.04248653,165.81,165.77,3.05350981]
[1730494797438,0.1,165.81,165.78,3.05350981]
[1730494797611,9.04248653,165.81,165.75,39.10838653]
[1730494797816,9.04248653,165.81,165.76,3.0534477]
[1730494798016,9.04248653,165.81,165.77,3.0534477]
[1730494798315,9.04248653,165.81,165.78,3.0534477]
[1730494798511,9.04248653,165.81,165.75,8.94248653]
[1730494798715,9.04248653,165.81,165.76,3.05339206]
[1730494798935,9.04248653,165.81,165.77,3.05339206]
[1730494799129,9.04248653,165.81,165.78,3.05339206]
[1730494799332,9.04248653,165.81,165.75,8.94248653]
[1730494799523,9.04248653,165.81,165.76,3.05337383]
[1730494799725,9.04248653,165.81,165.77,3.05337383]
[1730494800041,9.04248653,165.81,165.78,6.032]
[1730494800213,9.04248653,165.81,165.78,9.08537205]
[1730494800412,9.04248653,165.81,165.78,6.032]
[1730494801818,9.04248653,165.81,165.77,15.0807]
[1730494802738,8.94248653,165.8,165.77,15.0807]
[1730494802931,8.94248653,165.79,165.77,15.0807]
[1730494803114,8.94248653,165.79,165.74,21.1168]
[1730494803115,8.94248653,165.78,165.74,21.1168]
[1730494803432,0.1,165.78,165.74,21.1168]
[1730494803634,0.1,165.77,165.74,21.1168]
[1730494804016,0.1,165.74,165.71,6.0345]
[1730494804208,9.04248653,165.74,165.71,6.0345]
[1730494804828,9.04248653,165.74,165.72,3.0539428]
[1730494805007,9.04248653,165.74,165.71,6.0345]
[1730494805207,9.04248653,165.74,165.7,51.2967]
[1730494805422,8.94248653,165.75,165.7,60.23918653]
[1730494805630,9.04248653,165.75,165.71,3.05424374]
[1730494805824,9.04248653,165.75,165.72,3.05424374]
[1730494806038,9.04248653,165.75,165.73,3.05424374]
[1730494806235,9.04248653,165.75,165.73,3.05303507]
[1730494806542,9.04248653,165.74,165.7,51.2967]
[1730494807036,8.94248653,165.72,165.7,15.0867]
[1730494807270,9.04248653,165.71,165.67,21.1259]
[1730494807636,9.04248653,165.71,165.68,3.05078861]
[1730494807815,9.04248653,165.71,165.69,3.05078861]
[1730494808016,9.04248653,165.71,165.7,3.05078861]
[1730494808233,0.1,165.69,165.68,3.05078861]
[1730494808548,0.1,165.67,165.66,0.6089798]
[1730494808843,9.04248653,165.67,165.66,3.65866571]
[1730494809235,9.04248653,165.67,165.66,0.6089798]
[1730494809448,8.94248653,165.67,165.66,0.6089798]
[1730494809615,9.04248653,165.68,165.66,0.6089798]
[1730494809819,0.1,165.67,165.66,0.6089798]
[1730494810314,9.04248653,165.68,165.66,0.6089798]
[1730494810619,0.1,165.67,165.66,0.6089798]
[1730494811526,9.14248653,165.69,165.66,6.6453798]
[1730494811718,20.1,165.69,165.66,21.7364798]
[1730494812127,20.2,165.69,165.66,21.7364798]
[1730494812334,0.1,165.67,165.66,21.7364798]
[1730494812740,9.14248653,165.67,165.66,15.7000798]
[1730494814925,9.04248653,165.67,165.66,15.7000798]
[1730494815130,0.1,165.67,165.66,15.7000798]
[1730494815331,0.1,165.68,165.66,15.7000798]
[1730494815532,0.2,165.68,165.66,15.7000798]
[1730494815742,0.1,165.68,165.66,15.7000798]
[1730494816127,0.1,165.67,165.66,15.7000798]
[1730494816847,0.1,165.68,165.66,21.7364798]
[1730494817224,0.2,165.68,165.66,21.7364798]
[1730494817424,0.1,165.68,165.66,21.7364798]
[1730494817642,0.2,165.68,165.66,21.7364798]
[1730494817942,9.14248653,165.69,165.66,21.7364798]
[1730494818152,0.1,165.68,165.66,21.7364798]
[1730494818442,0.1,165.67,165.66,21.7364798]
[1730494820347,79.14248653,165.67,165.66,0.6089798]
[1730494820526,0.2,165.61,165.59,21.1358]
[1730494820730,9.04248653,165.6,165.59,15.0971]
[1730494821231,9.04248653,165.6,165.58,6.0393]
[1730494821232,0.2,165.59,165.56,21.1402]
[1730494821434,8.94248653,165.59,165.56,21.1402]
[1730494821740,9.04248653,165.59,165.56,21.1402]
[1730494823257,9.14248653,165.59,165.56,21.1402]
[1730494823751,9.04248653,165.6,165.56,21.1402]
[1730494824055,0.1,165.6,165.57,8.94248653]
[1730494824644,0.1,165.6,165.57,21.139]
[1730494826448,0.2,165.61,165.57,21.139]
[1730494826662,0.2,165.6,165.57,21.139]
[1730494826834,0.1,165.6,165.57,21.139]
[1730494827035,0.2,165.6,165.57,21.139]
[1730494827236,0.1,165.6,165.57,21.139]
[1730494827738,0.1,165.6,165.57,30.08148653]
[1730494827937,0.1,165.61,165.57,30.08148653]
[1730494828160,9.14248653,165.6,165.57,21.139]
[1730494828739,0.1,165.59,165.57,15.0993]
[1730494829364,9.04248653,165.58,165.56,6.0401]
[1730494829661,0.1,165.58,165.56,6.0401]
[1730494830541,9.04248653,165.59,165.56,6.0401]
[1730494830744,0.1,165.59,165.56,21.1403]
[1730494830947,9.14248653,165.59,165.56,21.1403]
[1730494831266,9.14248653,165.58,165.56,21.1403]
[1730494833374,9.04248653,165.58,165.56,21.1403]
[1730494833669,9.14248653,165.58,165.56,21.1403]
[1730494834758,0.1,165.56,165.55,0.4]
[1730494834964,9.14248653,165.56,165.55,0.4]
[1730494838665,9.04248653,165.56,165.55,0.4]
[1730494839047,9.14248653,165.56,165.55,0.4]
[1730494842046,9.04248653,165.56,165.55,0.4]
[1730494842860,9.14248653,165.56,165.55,0.4]
[1730494844471,15.18258653,165.56,165.55,0.4]
[1730494845349,0.1,165.56,165.55,6.4404]
[1730494845673,0.1,165.56,165.55,0.4]
[1730494845851,9.14248653,165.58,165.55,15.5011]
[1730494846054,0.1,165.58,165.55,21.5415]
[1730494846353,0.1,165.57,165.55,21.5415]
[1730494847155,0.1,165.58,165.55,21.5415]
[1730494847359,0.1,165.59,165.55,30.48398653]
[1730494847761,0.2,165.6,165.55,30.48398653]
[1730494848075,0.1,165.62,165.58,8.94248653]
[1730494848276,0.2,165.62,165.58,8.94248653]
[1730494848682,0.1,165.61,165.58,8.94248653]
[1730494850182,0.1,165.61,165.58,14.98148653]
[1730494850356,0.1,165.61,165.58,6.039]
[1730494850551,0.1,165.61,165.58,21.1374]
[1730494851058,6.0375,165.64,165.59,8.94248653]
[1730494851059,0.1,165.64,165.59,8.94248653]
[1730494851560,0.2,165.64,165.59,8.94248653]
[1730494851774,0.1,165.62,165.59,8.94248653]
[1730494852302,0.1,165.62,165.6,6.0386]
[1730494852959,9.14248653,165.64,165.6,6.0386]
[1730494853160,0.1,165.63,165.6,6.0386]
[1730494853475,8.94248653,165.61,165.58,15.0984]
[1730494853677,8.94248653,165.6,165.58,21.1377]
[1730494853977,8.94248653,165.61,165.58,21.1377]
[1730494854183,9.14248653,165.62,165.58,21.1377]
[1730494854385,9.14248653,165.62,165.58,15.0984]
[1730494855465,9.04248653,165.61,165.58,15.0984]
[1730494855781,8.94248653,165.6,165.58,15.0984]
[1730494855984,8.94248653,165.59,165.55,21.541]
[1730494856485,15.18118653,165.6,165.55,21.541]
[1730494856665,9.04248653,165.59,165.55,21.541]
[1730494857061,0.1,165.58,165.55,21.541]
[1730494858976,0.2,165.58,165.55,15.5007]
[1730494859177,9.14248653,165.58,165.55,15.5007]
[1730494860492,9.14248653,165.58,165.55,0.4]
[1730494860493,9.14248653,165.57,165.55,0.4]
[1730494860666,9.04248653,165.57,165.55,0.4]
[1730494860866,0.1,165.57,165.55,0.4]
[1730494861577,8.94248653,165.62,165.56,8.94248653]
[1730494861760,8.94248653,165.62,165.55,6.4404]
[1730494861761,0.2,165.62,165.57,8.94248653]
[1730494861965,0.1,165.6,165.56,8.94248653]
[1730494862274,9.04248653,165.59,165.55,21.5415]
[1730494862573,0.1,165.56,165.55,0.4]
[1730494863390,108.95947053,165.56,165.55,0.4]
[1730494863563,128.95947053,165.56,165.55,0.4]
[1730494867312,70.1,165.51,165.5,0.6089798]
[1730494867501,102.91937053,165.51,165.5,0.6089798]
[1730494867786,118.32747053,165.51,165.5,0.6089798]
[1730494867984,138.32747053,165.51,165.5,0.6089798]
[1730494869376,144.36937053,165.51,165.5,0.6089798]
[1730494869694,0.1,165.46,165.43,21.1563]
[1730494869883,0.1,165.46,165.43,30.09878653]
[1730494870192,0.1,165.47,165.43,30.09878653]
[1730494870366,0.1,165.46,165.43,30.09878653]
[1730494870973,0.1,165.47,165.43,30.09878653]
[1730494871991,0.1,165.48,165.44,8.94248653]
[1730494872368,0.1,165.48,165.45,21.1544]
[1730494872695,0.1,165.49,165.45,30.09688653]
[1730494872893,0.2,165.49,165.45,30.09688653]
[1730494873592,9.04248653,165.51,165.45,30.09688653]
[1730494873775,0.1,165.51,165.47,30.09418653]
[1730494873980,0.2,165.5,165.47,21.1517]
[1730494874683,0.1,165.5,165.47,21.1517]
[1730494874881,0.2,165.5,165.47,21.1517]
[1730494876096,9.04248653,165.48,165.46,6.0437]
[1730494877276,9.04248653,165.48,165.44,15.1107]
[1730494877277,0.1,165.47,165.45,6.044]
[1730494877492,0.1,165.46,165.45,6.044]
[1730494877680,0.1,165.45,165.44,15.1107]
[1730494877880,0.1,165.45,165.41,21.1594]
[1730494878083,0.1,165.45,165.41,30.10188653]
[1730494878381,0.1,165.44,165.41,21.1594]
[1730494878702,9.04248653,165.44,165.41,21.1594]
[1730494879000,0.1,165.44,165.41,21.1594]
[1730494879295,0.1,165.43,165.41,15.1139]
[1730494879476,0.1,165.43,165.33,37.1131798]
[1730494879477,0.1,165.42,165.38,8.94248653]
[1730494879990,0.2,165.41,165.37,14.98938653]
[1730494880182,0.2,165.41,165.37,30.10698653]
[1730494880389,0.1,165.41,165.37,30.10698653]
[1730494880898,0.2,165.41,165.37,30.10698653]
[1730494881078,0.1,165.41,165.37,30.10698653]
[1730494881481,0.2,165.4,165.37,21.1645]
[1730494881895,0.1,165.4,165.37,30.10698653]
[1730494882786,0.1,165.4,165.37,21.1646]
[1730494883401,0.1,165.39,165.37,15.1176]
[1730494883901,0.1,165.39,165.37,21.1646]
[1730494885097,0.1,165.4,165.37,21.1646]
[1730494885304,0.1,165.4,165.37,24.06008653]
[1730494885597,0.1,165.39,165.37,24.06008653]
[1730494886006,0.1,165.39,165.37,15.1176]
[1730494886310,0.1,165.4,165.37,15.1176]
[1730494886599,0.1,165.4,165.37,30.10708653]
[1730494886977,0.1,165.41,165.37,30.10708653]
[1730494887204,0.1,165.41,165.37,21.1646]
[1730494887403,0.1,165.4,165.37,21.1646]
[1730494887604,0.1,165.41,165.37,21.1646]
[1730494887903,0.1,165.4,165.37,21.1646]
[1730494889992,0.1,165.4,165.35,8.94248653]
[1730494890483,0.1,165.41,165.37,8.94248653]
[1730494891990,0.1,165.41,165.37,15.1169]
[1730494892618,9.04248653,165.41,165.37,15.1169]
[1730494893098,8.94248653,165.39,165.37,15.1169]
[1730494893286,9.04248653,165.39,165.37,15.1169]
[1730494894181,0.1,165.36,165.33,6.6571798]
[1730494895098,9.14248653,165.38,165.33,21.7783798]
[1730494895297,0.2,165.37,165.33,21.7783798]
[1730494895609,0.1,165.38,165.33,30.72086633]
[1730494895909,0.1,165.38,165.34,8.94248653]
[1730494896214,0.1,165.39,165.35,6.0477]
[1730494896400,0.1,165.38,165.35,21.1671]
[1730494897491,0.1,165.39,165.35,21.1671]
[1730494898198,9.04248653,165.39,165.35,21.1671]
[1730494899014,9.04248653,165.41,165.35,30.10958653]
[1730494899314,0.1,165.41,165.36,8.94248653]
[1730494899492,0.1,165.4,165.36,8.94248653]
[1730494900412,9.04248653,165.39,165.35,21.1671]
[1730494904002,9.04248653,165.38,165.35,21.1671]
[1730494905221,9.04248653,165.38,165.35,15.1194]
[1730494905420,0.1,165.38,165.35,15.1194]
[1730494906128,9.04248653,165.39,165.35,15.1194]
[1730494906312,0.1,165.38,165.35,21.1671]
[1730494909029,9.04248653,165.39,165.35,21.1671]
[1730494909324,0.1,165.38,165.35,21.1671]
[1730494909704,9.04248653,165.39,165.35,21.1671]
[1730494910728,9.04248653,165.4,165.35,21.1671]
[1730494910920,0.1,165.39,165.35,21.1671]
[1730494911721,9.04248653,165.4,165.35,21.1671]
[1730494912118,9.04248653,165.41,165.35,24.06188653]
[1730494912435,0.1,165.4,165.36,8.94248653]
[1730494912942,0.1,165.4,165.35,24.06188653]
[1730494913632,9.04248653,165.4,165.35,24.06188653]
[1730494914533,9.04248653,165.4,165.35,30.10958653]
[1730494915020,0.1,165.4,165.35,30.10958653]
[1730494915223,9.04248653,165.4,165.35,30.10958653]
[1730494916320,0.1,165.4,165.35,30.10958653]
[1730494918323,0.1,165.4,165.36,8.94248653]
[1730494918741,9.04248653,165.4,165.35,15.1194]
[1730494918930,0.1,165.4,165.35,24.06188653]
[1730494919136,0.1,165.44,165.39,8.94248653]
[1730494919439,0.1,165.44,165.4,8.94248653]
[1730494919644,0.2,165.44,165.4,8.94248653]
[1730494920430,25.08598653,165.46,165.41,21.1594]
[1730494920640,0.1,165.45,165.41,30.10188653]
[1730494921623,0.1,165.45,165.41,21.1594]
[1730494924046,6.1442,165.45,165.41,21.1594]
[1730494924430,31.12978653,165.46,165.41,21.1594]
[1730494924738,0.1,165.45,165.41,21.1594]
[1730494925045,9.04248653,165.45,165.41,21.1594]
[1730494925653,9.04248653,165.45,165.41,15.1139]
[1730494925959,0.1,165.44,165.41,15.1139]
[1730494928234,0.1,165.44,165.41,24.05638653]
[1730494929154,0.1,165.44,165.41,15.1139]
[1730494930457,0.1,165.44,165.4,14.98808653]
[1730494930655,9.04248653,165.41,165.38,15.1161]
[1730494931028,0.1,165.41,165.38,18.17222093]
[1730494932058,0.1,165.41,165.38,24.21882093]
[1730494932248,0.1,165.41,165.38,21.1627]
[1730494933145,0.1,165.41,165.38,15.1161]
[1730494933345,0.1,165.41,165.38,18.17232018]
[1730494934357,0.1,165.41,165.38,15.1161]
[1730494934540,0.1,165.41,165.38,18.17245474]
[1730494934871,0.1,165.41,165.38,21.1627]
[1730494935456,0.1,165.4,165.36,14.98978653]
[1730494936157,0.1,165.39,165.36,18.04651519]
[1730494937654,0.1,165.39,165.36,14.98978653]
[1730494937863,0.1,165.39,165.36,18.04671187]
[1730494939063,0.1,165.37,165.36,3.05692534]
[1730494939266,70.0,165.39,165.35,21.1664]
[1730494939267,0.1,165.39,165.35,21.1664]
[1730494939467,0.1,165.38,165.35,21.1664]
[1730494939646,0.1,165.38,165.35,30.10888653]
[1730494940547,0.1,165.38,165.36,3.05688727]
[1730494940950,0.1,165.38,165.35,21.1664]
[1730494942072,0.1,165.39,165.35,21.1664]
[1730494943643,0.1,165.38,165.35,21.1664]
[1730494944569,0.1,165.37,165.35,21.1664]
[1730494945576,0.1,165.37,165.35,15.1188]
[1730494945878,0.1,165.38,165.35,18.1759635]
[1730494946062,0.1,165.37,165.35,18.1759635]
[1730494946251,0.1,165.38,165.35,18.1759635]
[1730494947571,0.1,165.37,165.35,15.1188]
[1730494947750,0.1,165.37,165.35,18.17577012]
[1730494948152,0.1,165.37,165.35,15.1188]
[1730494948371,0.1,165.37,165.35,18.17575571]
[1730494948755,0.1,165.35,165.33,6.89149453]
[1730494948956,0.1,165.35,165.33,0.6089798]
[1730494949482,0.1,165.35,165.33,3.6658372]
[1730494950668,0.1,165.34,165.33,3.6658372]
[1730494951372,0.1,165.34,165.33,0.6089798]
[1730494956268,15.09058653,165.34,165.33,0.6089798]
[1730494959171,58.86747053,165.34,165.33,0.6089798]
[1730494959371,58.86747053,165.34,165.32,3.05487216]
[1730494959372,122.91937053,165.33,165.32,3.05487216]
[1730494959582,131.15344039,165.33,165.32,3.05487216]
[1730494960879,137.20194039,165.33,165.32,3.05487216]
[1730494963777,0.1,165.27,165.25,6.0514]
[1730494964680,0.1,165.29,165.25,8.94248653]
[1730494964866,0.1,165.31,165.27,8.94248653]
[1730494965061,0.1,165.32,165.28,8.94248653]
[1730494965255,0.1,165.27,165.26,8.94248653]
[1730494965455,0.1,165.27,165.23,21.1825]
[1730494965456,0.1,165.27,165.24,8.94248653]
[1730494965670,0.1,165.25,165.22,12.33144116]
[1730494966383,70.1,165.26,165.22,12.33144116]
[1730494966570,0.1,165.27,165.24,8.94248653]
[1730494966758,70.1,165.28,165.24,30.12358653]
[1730494967271,0.1,165.29,165.25,8.94248653]
[1730494967474,0.1,165.28,165.26,8.94248653]
[1730494967661,0.1,165.28,165.25,8.94248653]
[1730494968276,0.1,165.28,165.24,30.12358653]
[1730494968762,0.1,165.28,165.24,24.07198653]
[1730494968959,0.1,165.28,165.24,30.12378653]
[1730494970477,0.1,165.28,165.23,6.0521]
[1730494970478,0.1,165.26,165.23,6.0521]
[1730494971079,0.1,165.26,165.23,14.99458653]
[1730494971275,9.04248653,165.29,165.24,8.94248653]
[1730494971482,0.1,165.29,165.24,8.94248653]
[1730494971787,0.1,165.27,165.24,8.94248653]
[1730494972164,0.1,165.27,165.23,30.12498653]
[1730494974270,0.1,165.26,165.23,21.1825]
[1730494974777,0.1,165.26,165.23,30.12498653]
[1730494975577,0.1,165.26,165.23,21.1825]
[1730494976089,0.1,165.26,165.23,30.12498653]
[1730494976977,0.1,165.3,165.25,8.94248653]
[1730494977173,0.1,165.3,165.27,8.94248653]
[1730494977686,0.1,165.3,165.26,8.94248653]
[1730494979080,0.1,165.3,165.27,6.0507]
[1730494979288,92.1539,165.31,165.27,6.0507]
[1730494979589,0.1,165.32,165.28,8.94248653]
[1730494979769,0.1,165.32,165.29,8.94248653]
[1730494980089,0.1,165.32,165.28,8.94248653]
[1730494980465,15.09078653,165.34,165.28,8.94248653]
[1730494980662,0.1,165.33,165.29,8.94248653]
[1730494980972,0.1,165.33,165.28,8.94248653]
[1730494981970,21.225,165.39,165.28,8.94248653]
[1730494981971,0.1,165.36,165.32,8.94248653]
[1730494982280,0.1,165.37,165.33,8.94248653]
[1730494982482,0.1,165.38,165.34,8.94248653]
[1730494982667,0.1,165.37,165.34,8.94248653]
[1730494982875,0.1,165.38,165.34,8.94248653]
[1730494983089,0.1,165.37,165.34,14.99048653]
[1730494983285,0.1,165.37,165.34,6.048]
[1730494983897,3.24,165.41,165.36,50.94843265]
[1730494984187,0.1,165.44,165.4,8.94248653]
[1730494984997,0.1,165.44,165.39,8.94248653]
[1730494985372,9.04248653,165.44,165.38,8.94248653]
[1730494986498,20.0,165.45,165.4,8.94248653]
[1730494986789,20.1,165.45,165.4,8.94248653]
[1730494987499,0.1,165.4,165.34,24.06278653]
[1730494987792,8.94248653,165.37,165.34,15.1203]
[1730494988484,8.94248653,165.38,165.32,8.94248653]
[1730494988786,9.04248653,165.37,165.31,8.94248653]
[1730494988966,9.04248653,165.36,165.3,30.11608653]
[1730494990896,8.94248653,165.35,165.3,21.1736]
[1730494991271,9.04248653,165.34,165.28,8.94248653]
[1730494991877,9.04248653,165.34,165.29,8.94248653]
[1730494992278,9.04248653,165.33,165.27,30.11978653]
[1730494992474,14.17633692,165.31,165.25,20.12743692]
[1730494992687,0.1,165.31,165.26,14.07633692]
[1730494992987,0.1,165.31,165.28,14.07633692]
[1730494993592,6.1493,165.31,165.26,14.07633692]
[1730494993893,6.1493,165.31,165.27,14.07633692]
[1730494994474,6.1493,165.31,165.26,14.07633692]